Cogmind - Beta 17 @@@ ROGUE MODE // 2026.07.08 @ 23:08:29 Player: IsAway Result: Destroyed by as-97779 with Assembled Rifle Performance ------------- Evolutions (0) 0 Regions Visited (2) 400 Robots Destroyed (8) 40 Value Destroyed (225) 225 Prototype IDs (0) 0 Alien Tech Used (0) 0 Bonus (0) 0 TOTAL SCORE: 665 Bonus ------- None Cogmind --------- Core Integrity 0/250 Matter 300/300 Energy 99/100 System Corruption 0% Temperature Cool (84) Movement Core (50) Location -10/Mines Parts ------- > --- POWER (1) -------- (None) > --- PROPULSION (2) --- (None) > --- UTILITY (2) ------ (None) > --- WEAPON (2) ------- (None) > --- INVENTORY (5) ---- Flight Unit Improved Heat Sink Hacking Suite Peak State ------------ > --- POWER ------------ Light Nuclear Core > --- PROPULSION ------- Wheel > --- UTILITY ---------- Small Storage Unit Seismic Detector > --- WEAPON ----------- Medium Laser Particle Gun > --- INVENTORY -------- Flight Unit Hacking Suite [Rating: 9] Favorites ----------- Power Ion Engine Engine Ion Engine Power Core Light Nuclear Core Propulsion Wheel Wheel Wheel Utility Small Storage Unit Device Seismic Detector Storage Small Storage Unit Weapon Medium Laser Energy Gun Medium Laser Special Weapon Mining Laser Build | -11 -10 -10 ------- Run | Yrd Mat Min Slots Evolved . | . . . Power . | . . . Propulsion . | . . . Utility . | . . . Weapon . | . . . Parts Attached 10 | 7 1 2 Power 2 | 1 . 1 Engine 1 | 1 . . Core 1 | . . 1 Reactor . | . . . Propulsion 2 | 2 . . Treads . | . . . Leg . | . . . Wheel 2 | 2 . . Hover . | . . . Flight . | . . . Utility 2 | 2 . . Device 1 | 1 . . Storage 1 | 1 . . Processor . | . . . Hackware . | . . . Protection . | . . . Artifact . | . . . Weapon 4 | 2 1 1 Energy Gun 3 | 2 . 1 Energy Cannon . | . . . Ballistic Gun . | . . . Ballistic Cannon . | . . . Launcher . | . . . Special Weapon 1 | . 1 . Impact Weapon . | . . . Slashing Weapon . | . . . Piercing Weapon . | . . . Special Melee Weapon . | . . . Unidentified Prototypes . | . . . Parts Lost 4 | . . 4 Power 1 | . . 1 Propulsion 1 | . . 1 Utility . | . . . Weapon 2 | . . 2 Highest Loss Streak 3 | . . 3 To Critical Strikes . | . . . Average Backups 2 | . 1 2 Power . | . . . Propulsion . | . . 1 Utility 1 | . . 1 Weapon . | . 1 . Tool/Special . | . . . Unused Backups 3 | . . 3 Power . | . . . Propulsion 1 | . . 1 Utility 2 | . . 2 Weapon . | . . . Tool/Special . | . . . Average Slot Usage (%) 92 | . 100 90 Engine 8 | . 14 7 Core 4 | . . 6 Wheel 22 | . 28 21 Device 14 | . 14 14 Storage 14 | . 14 14 Energy Gun 19 | . 14 21 Special Weapon 7 | . 14 5 Peak Build Rating 9 | 7 7 9 Average Rating 7 | 4 7 7 On Entrance 4 | . 7 7 Avg Prop Armor Cover (%) . | . . . Naked Turns . | . . . Heaviest Build 16 | 15 14 16 Greatest Support 26 | 26 26 26 Greatest Overweight (x) 1 | . . 1 Average Overweight (x) . | . . . Largest Inventory Capacity 8 | 8 8 8 Average Capacity 7 | 7 8 8 Most Carried 3 | 1 3 3 Average Carried 2 | . 1 2 Final Capacity 8 | 8 8 5 Final Carried 3 | 1 3 3 Class Distribution -------------------- 100% | Mutant Dominant Class ---------------- Mutant | -10/Materials Mutant | -10/Mines Resources | -11 -10 -10 ----------- Run | Yrd Mat Min Matter Collected 315 | 227 48 40 Remotely . | . . . Salvage Created 320 | 108 48 164 Parts 18 | 6 3 9 Haulers Intercepted . | . . . Recyclers Shooed 2 | 1 1 . Parts Field Recycled . | . . . Retrieved Matter . | . . . Parts Self-Destructed . | . . . Prevented . | . . . Parts Restored . | . . . Kills | -11 -10 -10 ------- Run | Yrd Mat Min Combat Hostiles Destroyed 5 | . 1 4 Melee 1 | . . 1 Guns 3 | . 1 2 Cannons 1 | . . 1 Classes Destroyed 4 | 2 2 . Tunneler 1 | 1 . . Recycler 1 | 1 . . Operator 1 | . 1 . Grunt 5 | . 1 4 Best Kill Streak 2 | 2 1 2 Combat Bots Only 2 | . 1 2 Max Kills in Single Turn 1 | 1 1 1 Gunslinging . | . . . Exploded . | . . . Melee 1 | . . 1 Uniques/NPCs Destroyed . | . . . Combat | -11 -10 -10 -------- Run | Yrd Mat Min Hostile Shots Fired 51 | . 4 47 Missed 11 | . 2 9 Hits 40 | . 2 38 Melee 4 | . . 4 Projectile 36 | . 2 34 Critical Strikes 1 | . . 1 Damage Taken 610 | . 23 587 Core 252 | . 12 240 Absorbed by Shields . | . . . Core Remaining (%) 100 | 100 . . Volleys Fired 29 | 4 6 19 Largest 2 | 2 2 2 Hottest 150 | 90 140 150 Shots Fired 42 | 8 9 25 Gun 34 | 8 5 21 Cannon . | . . . Launcher . | . . . Special 8 | . 4 4 Kinetic . | . . . Thermal 31 | 4 4 23 Explosive . | . . . Electromagnetic 11 | 4 5 2 Robot Hit Streak 6 | 5 3 6 Robot Miss Streak 5 | 1 1 5 Penetration Max . | . . . Secondary Targets . | . . . Shots Hit Robots 25 | 6 5 14 Core Hits 12 | 3 2 7 Critical Kills . | . . . Critical Parts Destroyed . | . . . Critical Strikes 1 | . . 1 Burn 1 | . . 1 Melee Attacks . | . . . Impact . | . . . Slashing . | . . . Piercing . | . . . Sneak Attacks . | . . . Combat Hostiles . | . . . Follow-up Attacks . | . . . Damage Inflicted 420 | 75 83 262 Guns 317 | 75 59 183 Cannons . | . . . Explosions . | . . . Melee . | . . . Ramming 31 | . . 31 Kinetic . | . . . Thermal 275 | 50 24 201 Explosive . | . . . Electromagnetic 114 | 25 59 30 Impact . | . . . Slashing . | . . . Piercing . | . . . Highest Corruption . | . . . Average Corruption . | . . . Corruption Purged . | . . . Corruption Blocked . | . . . Overload Shots . | . . . Overflow Damage . | . . . Projectiles . | . . . Explosions . | . . . Melee . | . . . Knockbacks . | . . . Impact . | . . . Kinetic . | . . . Secondary . | . . . Self-Inflicted Damage 13 | . . 13 Shots . | . . . Rammed 12 | . . 12 Targets Rammed 12 | . . 12 Kicked . | . . . Crushed . | . . . Highest Temperature 141 | 110 92 141 Average Temperature 51 | 50 37 56 Received Heat Transfer 258 | . 12 246 Siege Activations . | . . . Martial Activations . | . . . Shielding Activations . | . . . Robots Disrupted . | . . . Combat Hostiles . | . . . Robots Corrupted . | . . . Combat Hostiles . | . . . Parts Fried . | . . . Impact Corruptions . | . . . Robots Melted . | . . . Combat Hostiles . | . . . Parts Melted . | . . . Heat Transferred 779 | 148 50 581 Parts Sabotaged . | . . . Parts Stolen . | . . . Parts Stripped . | . . . Power Chain Reactions . | . . . Alert | -11 -10 -10 ------- Run | Yrd Mat Min Maximum Alert Level . | . . . Low Security (%) 100 | 100 100 100 Level 1 . | . . . Level 2 . | . . . Level 3 . | . . . Level 4 . | . . . Level 5 . | . . . High Security . | . . . Max Security . | . . . Peak Influence 50 | 5 32 50 Initial 3 | . 3 . Average 9 | 1 8 10 Influence Increases 147 | 10 37 100 Destroy 0b10 Robot/C 100 | . 20 80 Destroy 0b10 Robot/NC 15 | 10 5 . Destroy Leader 30 | . 10 20 Destroy Structure 2 | . 2 . Influence Decreases 147 | 5 40 102 Entered New Map 4 | . 2 2 Time Decay 133 | 5 38 90 Lost Part 10 | . . 10 Squads Dispatched 1 | . 1 . Investigation . | . . . Extermination . | . . . Reinforcement 1 | . 1 . Assault . | . . . Garrison . | . . . Intercept . | . . . Searches Triggered . | . . . Construction Impeded . | . . . Haulers Reinforced . | . . . Active Scanning Responses . | . . . Cargo Convoy Interrupts . | . . . Stealth | -11 -10 -10 --------- Run | Yrd Mat Min Distress Signals . | . . . Communications Jammed . | . . . Distress Signals . | . . . Times Spotted 12 | . 3 9 Peak Tracking Total 5 | . 2 5 Tactical Retreats 1 | . . 1 Traps | -11 -10 -10 ------- Run | Yrd Mat Min Traps Triggered . | . . . Indirectly . | . . . Trap Hack Attempts . | . . . Triggered . | . . . Disarmed . | . . . Reprogrammed . | . . . Reused . | . . . Traps Extracted . | . . . Installed . | . . . Triggered . | . . . Machines | -11 -10 -10 ---------- Run | Yrd Mat Min Machines Disabled . | . . . Max in Single Turn . | . . . Machines Repaired . | . . . Machines Dismantled . | . . . Machines Sabotaged . | . . . Overloaded Fab Kills . | . . . Hacking | -11 -10 -10 --------- Run | Yrd Mat Min Machines Accessed . | . . . Terminals . | . . . Fabricators . | . . . Repair Stations . | . . . Recycling Units . | . . . Scanalyzers . | . . . Garrison Access . | . . . Total Hacks . | . . . Successful . | . . . Failed . | . . . Catastrophic . | . . . Database Lockouts . | . . . Manual . | . . . Terminals . | . . . Fabricators . | . . . Repair Stations . | . . . Recycling Units . | . . . Scanalyzers . | . . . Garrison Access . | . . . Terminal Hacks . | . . . Fabricator Hacks . | . . . Repair Station Hacks . | . . . Recycling Unit Hacks . | . . . Scanalyzer . | . . . Garrison Access Hacks . | . . . Unauthorized Hacks . | . . . Terminals . | . . . Fabricators . | . . . Repair Stations . | . . . Recycling Units . | . . . Scanalyzers . | . . . Garrison Access . | . . . Data Cores Recovered . | . . . Used . | . . . Hacking Detections . | . . . Full Trace Events . | . . . Feedback Events . | . . . Feedback Blocked . | . . . Robot Schematics Acquired . | . . . Robots Built . | . . . Authchips . | . . . Time . | . . . Total Robot Build Rating . | . . . Part Schematics Acquired . | . . . Parts Built . | . . . Authchips . | . . . Time . | . . . Total Part Build Rating . | . . . Part Studies Acquired . | . . . Parts Repaired . | . . . Time . | . . . Parts Recycled . | . . . Recycled Matter . | . . . Retrieved Matter . | . . . Retrieved Components . | . . . Parts Scanalyzed . | . . . Part Schematics Acquired . | . . . Parts Damaged . | . . . Bothacking | -11 -10 -10 ------------ Run | Yrd Mat Min Used RIF Installer . | . . . Robots Hacked . | . . . Non-combat . | . . . Combat . | . . . Robot Hacks Applied . | . . . Relay Couplers Released . | . . . Fabnet Peak Effective % . | . . . Robots Rewired . | . . . Allies Hacked . | . . . Hacks Repelled . | . . . Allies | -11 -10 -10 -------- Run | Yrd Mat Min Total Allies . | . . . Largest Group . | . . . Highest-Rated Group . | . . . Highest-Rated Ally . | . . . Total Orders . | . . . Ally Attacks . | . . . Total Damage . | . . . Kills . | . . . Allies Corrupted . | . . . Allies Melted . | . . . Intel | -11 -10 -10 ------- Run | Yrd Mat Min Active Infowar (turns) 442 | 5 104 333 Seismic 442 | 5 104 333 Robot Analysis Total . | . . . Derelict Logs Recovered . | . . . Drone Launches . | . . . Drone Recoveries . | . . . Exploration | -11 -10 -10 ------------- Run | Yrd Mat Min Turns Passed 495 | 58 104 333 Spaces Moved 298 | 40 87 171 Core 2 | 1 . 1 Treads . | . . . Legs . | . . . Wheels 296 | 39 87 170 Hover . | . . . Flight . | . . . Fastest Speed 50 | 50 90 50 Average Speed 90 | 88 90 91 Slowest Speed 95 | 90 90 95 Overloaded Moves . | . . . Propulsion Burnouts . | . . . Robots Hopped . | . . . Potential Cave-ins . | . . . Cave-ins Triggered . | . . . Exploration Rate (%) 17 | 3 20 29 Regions Visited 2 Branch Regions 1 Pre-discovered Areas . | . . . Known Exits Taken . | . . . Unknown Exits Taken 2 | 1 1 . Scrap Searched . | . . . Spaces Dug 1 | . 1 . Terrain Destroyed 2 | . 2 . Melee . | . . . Projectile 2 | . 2 . AOE . | . . . Terrain Rammed . | . . . Walls Destroyed . | . . . Machines Disabled . | . . . Actions | -11 -10 -10 --------- Run | Yrd Mat Min Total 459 | 51 95 313 Wait 105 | . . 105 Move 296 | 39 86 171 Hop . | . . . Pick Up 5 | 1 2 2 Fast Attach 8 | 7 . 1 Attach 2 | . . 2 Detach . | . . . Swap 2 | . 1 1 Drop . | . . . Fire 29 | 4 6 19 Melee . | . . . Ram 12 | . . 12 Kick . | . . . Crush . | . . . Escape Stasis . | . . . Rewire . | . . . Trap . | . . . Miscellaneous . | . . . Route ------- -11/Scrapyard -10/Materials (discovered 2 exits: [*Mat] / [*Min]) -10/Mines (discovered 1 exit: [*Mat]) History --------- Turn | Location | Event 5 | -11/Scrapyard | Discovered new exit (range 16) 59 | -11/Scrapyard | Entered Materials 125 | -10/Materials | Discovered new exit (range 10) 150 | -10/Materials | Discovered new exit (range 15) 163 | -10/Materials | Entered Mines 261 | -10/Mines | Discovered new exit (range 7) 307 | -10/Mines | Build established: Mutant 335 | -10/Mines | Core integrity fell below 50% 354 | -10/Mines | Lost 3 parts (1p1n1w) 395 | -10/Mines | Assembled infested the area 495 | -10/Mines | Core integrity fell below 20% 496 | -10/Mines | Released all parts (5) 496 | -10/Mines | Destroyed by as-97779 with Assembled Rifle Last Messages --------------- Med. Laser temporarily disabled. Ion Engine destroyed. Slammed into G-47 Trooper. Com. Wheel destroyed. Slammed into G-47 Trooper. G-47 Trooper destroyed. Acquired Particle Gun. G-34 Mercenary destroyed. Acquired 10 matter. Acquired Lgt. Nuclear Core. Acquired 10 matter. Acquired Imp. Heat Sink. ALERT: Infestation in the mines, dispatching Demolisher response squad. Med. Laser severed. Released Lgt. Nuclear Core. Released Sml. Storage Unit. Released Wheel. Released Seismic Detector. Released Particle Gun. Map ----- +----------------------------------------------------+ | ????????????????# ######?????????????????? | | ????????????????# ## ##????????????????? | | ????????????????# #####????????????? | | ?????????????????# ##???????????? | | ?????????????????# #### #???????????? | | ?????????????????# #??#### #???????????? | | ????????????????## #?????## ????? | | ???????????????## ##?????? """ #??? | | ???????????????# ##?????? """??????? | | ??????????????## #??????## """??????? | | ?????????????## #????????# ??????? | | ?????????????# ##?????????# #?????? | | ?????????????# ##??????????? #?????? | | ?????????????## ####????????????? ##?????? | | ???????????####% #?????????????????##??????? | | ???????????# #?????????????????????????? | | ???????????# ## ##????????????????????????? | | ???????????# ## ##???????????????????????? | | ??????????## ##??????????????????????? | | ?????????## ##?????????###?????????? | | ?????????# ####?????# ##????????? | | ?????????# ##???# #????????? | | ?????????# ##?# #????????? | | ?????????# a ## #?????????? | | ?????????## !aaa * #??????????? | | ??????????## [@[### ##?????????? | | ????####???# #####?## #?????????? | | ???## ##### ####??????# #?????????? | | ??## < #????????# #????????? | | ?## #????????# #????????? | | ?# ###### ###????????## ##????????? | | ?# ##????# #???????????## ### #?????????? | | ?# #?????# #?????????????# #???!#?????????? | | ?# #?????# #?????????????? #????#?????????? | | ?# ####### #?????????????? #??????????????? | | ?##### #?????????????? ??????????????? | | ?????# ######???????????????#??????????????? | | ?????# #???????????????????????????????????? | | ?????# #???????????????????????????????????? | | ?????# #???????????????????????????????????? | | ?????# #???????????????????????????????????? | | ?????# #???????????????????????????????????? | | ?????# #???????????????????????????????????? | | ?????# ##########??????????????????????????? | | ?????# # #??????????????????????????? | | ?????# #??????????????????????????? | | ?????###%% #??????????????????????????? | | ???????#%%= #??????????????????????????? | | ???????#%% """#??????????????????????????? | | ???????#% """#??????????????????????????? | +----------------------------------------------------+ Best States ------------- Heat Dissipation 25 Energy Generation 14 Energy Capacity 250 Matter Stores 300 Matter Capacity 300 Sight Range 16 Terrain Scan Density 10 Evasion (%) 44 Item Schematics ----------------- None Robot Schematics ------------------ None Fabricated ------------ Nothing Repaired ---------- Nothing Studied --------- None Alien Tech Used ----------------- None Achievements -------------- None Challenges ------------ None Game ------ Seed ChromaticDisruptorCarapace Manual? 0 Play Time 00:07:23 Cumulative 14.6 hours Start 2026.07.08 @ 23:01:11 End 2026.07.08 @ 23:08:29 Sessions 1 Manual Loads 0 Difficulty Rogue Special Mode None Game No. 20 Rogue 20 Adventurer 0 Explorer 0 Win Type - Total 0 Types 0/0/0/0/0/0/0/0/0/0 Lore% 17 Gallery% 13 Achievement% 13 Wizard Run 0 Options --------- Layout 1 ASCII 0 Keyboard 0 Movement Mouse Keybinds 0 Fullscreen 1 Font 18/SmallcapsGlow Map View 51x41 Zoom Use 0% Tactical HUD 0 Map Filters NONE Filters NONE Steam 1 RUN: 0cda057a-f9d6-49aa-8ec2-94121c838229